bitfinex/quotes_BTCUSD_20240905
["timestamp","ask_amount","ask_price","bid_price","bid_amount"]
[1725551475538,0.177872,56220.0,56219.0,0.17551096]
[1725551475777,0.27024548,56230.0,56219.0,0.17551096]
[1725551476007,0.177872,56220.0,56219.0,0.17551096]
[1725551476306,0.355735,56222.0,56219.0,0.17551096]
[1725551476307,0.177869,56222.0,56219.0,0.17551096]
[1725551476541,0.1852,56231.0,56219.0,0.17551096]
[1725551476542,0.000816,56235.0,56234.0,0.533484]
[1725551476778,0.000816,56235.0,56234.0,2.16565244]
[1725551477240,0.000816,56235.0,56234.0,2.53130844]
[1725551477466,0.000816,56235.0,56234.0,2.63330844]
[1725551477726,0.355486,56261.0,56234.0,2.36306296]
[1725551477727,0.177744,56261.0,56234.0,2.36306296]
[1725551477964,0.52650515,56254.0,56253.0,0.468766]
[1725551478193,0.355395,56276.0,56262.0,0.533218]
[1725551478419,0.355395,56276.0,56262.0,0.17551096]
[1725551478420,0.355432,56270.0,56262.0,0.17551096]
[1725551478928,0.355414,56273.0,56262.0,0.17551096]
[1725551478929,0.177719,56269.0,56262.0,0.35324996]
[1725551479140,0.355432,56270.0,56262.0,0.17551096]
[1725551479605,0.355414,56273.0,56262.0,0.35324996]
[1725551479818,0.177716,56270.0,56262.0,0.35324996]
[1725551480049,0.00182,56263.0,56262.0,0.72272896]
[1725551480281,0.00182,56263.0,56262.0,1.07820796]
[1725551480506,0.00182,56263.0,56262.0,1.38140796]
[1725551480719,0.00182,56263.0,56262.0,1.02592896]
[1725551480903,0.00182,56263.0,56262.0,1.38140796]
[1725551483458,0.00082,56263.0,56262.0,0.66744996]
[1725551483713,0.00082,56263.0,56262.0,1.37840796]
[1725551483946,0.00182,56263.0,56262.0,1.74788696]
[1725551484170,0.00182,56263.0,56262.0,1.39240796]
[1725551484608,0.00182,56263.0,56262.0,1.74788696]
[1725551485038,0.00182,56263.0,56262.0,2.08936596]
[1725551485279,0.00082,56263.0,56262.0,2.07836596]
[1725551485511,0.00082,56263.0,56262.0,1.72288696]
[1725551485747,0.00082,56263.0,56262.0,1.73288696]
[1725551486213,0.00082,56263.0,56262.0,1.01192896]
[1725551486664,0.00182,56263.0,56262.0,1.03992896]
[1725551487115,0.00182,56263.0,56262.0,1.39540796]
[1725551487831,0.00182,56263.0,56262.0,1.03992896]
[1725551488063,1.178602,56263.0,56262.0,0.028]
[1725551488279,1.534075,56263.0,56262.0,0.028]
[1725551488467,1.54415088,56263.0,56262.0,0.028]
[1725551489443,1.54415088,56263.0,56262.0,0.014]
[1725551489674,0.177764,56255.0,56251.0,0.177774]
[1725551489882,0.355504,56259.0,56252.0,0.17551096]
[1725551490089,0.533307,56253.0,56252.0,0.17551096]
[1725551490572,0.177784,56248.0,56247.0,0.476]
[1725551490781,0.177784,56248.0,56247.0,0.65151096]
[1725551491000,0.355549,56251.0,56247.0,0.65151096]
[1725551491221,0.355549,56251.0,56248.0,0.17551096]
[1725551491222,0.17778,56249.0,56248.0,0.17551096]
[1725551491399,0.533307,56253.0,56252.0,0.012]
[1725551491634,0.888846,56253.0,56252.0,0.012]
[1725551491841,0.533307,56253.0,56252.0,0.012]
[1725551492315,0.177766,56254.0,56252.0,0.012]
[1725551492541,0.177768,56253.0,56252.0,0.012]
[1725551492771,0.355527,56255.0,56248.0,0.17551096]
[1725551493032,0.355527,56255.0,56250.0,0.177777]
[1725551493255,0.355527,56255.0,56250.0,0.17551096]
[1725551493481,0.355538,56253.0,56250.0,0.17551096]
[1725551493712,0.355527,56255.0,56250.0,0.17551096]
[1725551493928,0.644396,56263.0,56252.0,0.013]
[1725551494181,0.355495,56260.0,56253.0,0.17551096]
[1725551494420,0.28892,56263.0,56255.0,0.177761]
[1725551494421,0.355479,56262.0,56255.0,0.177761]
[1725551494652,0.177745,56261.0,56256.0,0.35326696]
[1725551494872,0.177746,56260.0,56256.0,0.35326696]
[1725551495086,0.28892,56263.0,56257.0,0.3024]
[1725551495087,0.00082,56263.0,56257.0,0.3024]
[1725551495315,0.00082,56263.0,56262.0,0.533218]
[1725551495537,0.00082,56263.0,56262.0,0.17551096]
[1725551495744,0.00082,56263.0,56262.0,0.70872896]
[1725551496172,0.00082,56263.0,56262.0,1.06420796]
[1725551496806,0.00082,56263.0,56262.0,0.70872896]
[1725551497052,0.00182,56263.0,56262.0,0.36024996]
[1725551497265,0.00182,56263.0,56262.0,0.71572896]
[1725551497700,0.00082,56263.0,56262.0,0.70872896]
[1725551497950,0.00082,56263.0,56262.0,0.71172896]
[1725551498193,0.0091717,56263.0,56262.0,0.35624996]
[1725551498405,0.0091717,56263.0,56262.0,0.17851096]
[1725551498619,0.0091717,56263.0,56262.0,0.71172896]
[1725551498832,0.0091717,56263.0,56262.0,1.89688696]
[1725551499045,0.0091717,56263.0,56262.0,0.70872896]
[1725551499261,0.0091717,56263.0,56262.0,0.72072896]
[1725551499484,0.0091717,56263.0,56262.0,0.72372896]
[1725551499713,0.0091717,56263.0,56262.0,1.06720796]
[1725551499938,0.1874,56272.0,56262.0,1.06720796]
[1725551499939,0.355425,56271.0,56262.0,0.53098996]
[1725551500169,0.177722,56268.0,56263.0,0.17551096]
[1725551500391,0.177724,56267.0,56263.0,0.17551096]
[1725551500608,0.177726,56267.0,56262.0,0.191736]
[1725551500861,0.355445,56268.0,56262.0,0.18951096]
[1725551501101,0.355445,56268.0,56256.0,0.535513]
[1725551501102,0.177744,56261.0,56256.0,0.177757]
[1725551501341,0.177744,56261.0,56253.0,0.355535]
[1725551501342,0.533209,56263.0,56262.0,0.014]
[1725551501563,0.888682,56263.0,56262.0,0.014]
[1725551502237,1.522355,56263.0,56262.0,0.014]
[1725551502358,1.522355,56263.0,56262.0,0.026]
[1725551502582,1.522355,56263.0,56262.0,0.012]
[1725551502583,1.912828,56263.0,56262.0,0.012]
[1725551502798,1.912828,56263.0,56247.0,0.00042779]
[1725551502799,1.35862,56248.0,56247.0,0.00042779]
[1725551503040,2.38154489,56248.0,56247.0,0.00042779]
[1725551503269,2.39154489,56248.0,56247.0,0.00042779]
[1725551503490,2.53454489,56248.0,56247.0,0.00042779]
[1725551504463,2.17097689,56248.0,56247.0,0.00042779]
[1725551504680,2.16097689,56248.0,56247.0,0.00042779]
[1725551505305,2.15097689,56248.0,56247.0,0.00042779]
[1725551505529,0.99092,56248.0,56247.0,0.00042779]
[1725551505755,0.98892,56248.0,56247.0,0.00142779]
[1725551506206,0.635352,56248.0,56247.0,0.00242779]
[1725551506439,0.355545,56252.0,56247.0,0.00042779]
[1725551506655,0.35555,56251.0,56247.0,0.00042779]
[1725551506867,0.179784,56248.0,56247.0,0.00142779]
[1725551507352,0.002,56248.0,56247.0,0.17821479]
[1725551507549,0.31178889,56253.0,56247.0,0.28662779]
[1725551507923,0.177779,56250.0,56247.0,0.28662779]
[1725551508144,0.177766,56254.0,56250.0,0.177776]
[1725551508397,0.26994823,56257.0,56249.0,0.17778]
[1725551508398,0.355527,56255.0,56249.0,0.17778]
[1725551508561,0.355527,56255.0,56251.0,0.177773]
[1725551508562,0.177762,56255.0,56251.0,0.177773]
[1725551508733,0.177773,56252.0,56248.0,0.35372174]
[1725551509169,0.355521,56256.0,56249.0,0.355561]
[1725551509401,0.177766,56254.0,56250.0,0.177776]
[1725551509649,0.62546023,56257.0,56249.0,0.005]
[1725551509650,0.177774,56251.0,56249.0,0.005]
[1725551509892,0.000815,56262.0,56256.0,0.177756]
[1725551510117,0.000815,56262.0,56251.0,0.355548]
[1725551510334,0.000815,56262.0,56248.0,0.01712916]
[1725551510335,0.26994823,56256.0,56248.0,0.01742778]
[1725551510562,0.26994823,56256.0,56248.0,0.36072074]
[1725551510797,0.355537,56253.0,56248.0,0.35372074]
[1725551511017,0.177771,56252.0,56249.0,0.011]
[1725551511232,0.177771,56252.0,56249.0,0.019]
[1725551511661,0.355525,56255.0,56249.0,0.019]
[1725551511662,0.177766,56254.0,56249.0,0.019]
[1725551511927,0.26994823,56261.0,56250.0,0.53106596]
[1725551512123,0.177749,56259.0,56253.0,0.355531]
[1725551512345,0.44769223,56261.0,56256.0,0.177757]
[1725551512566,0.000815,56262.0,56258.0,0.3069]
[1725551513007,0.000815,56262.0,56260.0,0.177746]
[1725551513285,0.000815,56262.0,56261.0,0.177743]
[1725551513500,0.000815,56262.0,56261.0,0.888715]
[1725551513734,0.000815,56262.0,56261.0,0.70873996]
[1725551514167,0.000815,56262.0,56261.0,1.06422596]
[1725551514386,0.000815,56262.0,56261.0,0.70873996]
[1725551514616,0.000815,56262.0,56261.0,0.35325396]
[1725551515065,0.000815,56262.0,56256.0,0.355512]
[1725551515066,0.000815,56262.0,56257.0,0.177752]
[1725551515287,0.177749,56259.0,56254.0,0.2844]
[1725551515510,0.26994823,56261.0,56256.0,0.177757]
[1725551515511,0.177746,56260.0,56256.0,0.177757]
[1725551515730,0.26994823,56261.0,56259.0,0.177748]
[1725551515938,0.178555,56262.0,56259.0,0.177748]
[1725551515939,0.000815,56262.0,56259.0,0.177748]
[1725551516404,0.000815,56262.0,56261.0,0.473343]
[1725551516637,0.000815,56262.0,56255.0,0.651122]
[1725551516855,0.44769223,56261.0,56257.0,0.177754]
[1725551517085,0.177746,56260.0,56259.0,0.001]
[1725551517326,0.177743,56261.0,56259.0,0.001]
[1725551517541,0.177743,56261.0,56258.0,0.177752]
[1725551517542,0.000815,56262.0,56261.0,0.533229]
[1725551517768,0.000815,56262.0,56261.0,1.36682596]
[1725551518676,0.000815,56262.0,56261.0,1.01133996]
[1725551518885,0.000815,56262.0,56261.0,1.36682596]
[1725551519495,0.000815,56262.0,56261.0,1.01133996]
[1725551519959,0.000815,56262.0,56261.0,0.65585396]
[1725551520187,1.244991,56262.0,56261.0,0.025]
[1725551520412,2.277449,56262.0,56261.0,0.011]
[1725551520644,2.04197,56262.0,56261.0,0.025]
[1725551520868,2.04197,56262.0,56261.0,0.014]
[1725551521091,0.888807,56255.0,56254.0,0.00042773]
[1725551521330,1.15875523,56255.0,56254.0,0.00042773]
[1725551521538,1.53727823,56255.0,56254.0,0.00042773]
[1725551521757,0.177761,56255.0,56254.0,0.00042773]
[1725551521975,0.888807,56255.0,56254.0,0.00042773]
[1725551522203,1.599853,56255.0,56254.0,0.00042773]
[1725551522416,1.926053,56255.0,56254.0,0.00042773]
[1725551522858,1.26733,56255.0,56254.0,0.00042773]
[1725551523300,1.26733,56255.0,56254.0,0.00842773]
[1725551523796,1.26933,56255.0,56254.0,0.00042773]
[1725551524238,1.26733,56255.0,56254.0,0.00042773]
[1725551524695,0.177761,56255.0,56254.0,0.00042773]
[1725551524944,0.178555,56262.0,56254.0,0.17593869]
[1725551525179,0.178555,56262.0,56255.0,0.17551096]
[1725551525180,0.000815,56262.0,56255.0,0.17551096]
[1725551525397,0.177751,56259.0,56257.0,0.2831]
[1725551525602,0.177752,56258.0,56257.0,0.2831]
[1725551525829,0.000815,56262.0,56257.0,0.2831]
[1725551526071,0.17775,56259.0,56257.0,0.2831]
[1725551526277,0.177752,56258.0,56257.0,0.2831]
[1725551526473,0.000815,56262.0,56257.0,0.45861096]
[1725551526690,0.000815,56262.0,56258.0,0.17551096]
[1725551526691,0.177744,56261.0,56258.0,0.17551096]
[1725551526891,0.000815,56262.0,56258.0,0.35326096]
[1725551527108,0.177751,56259.0,56257.0,0.2861]
[1725551527335,0.000815,56262.0,56257.0,0.2961]
[1725551527336,0.533256,56258.0,56257.0,0.2961]
[1725551527554,0.177752,56258.0,56257.0,0.2931]
[1725551527991,0.533256,56258.0,56257.0,0.2931]
[1725551528205,0.62540923,56265.0,56259.0,0.01]
[1725551528206,0.177743,56261.0,56259.0,0.01]
[1725551528432,0.001,56262.0,56259.0,0.187748]
[1725551528668,0.1,56274.0,56261.0,0.01]
[1725551528906,0.1,56274.0,56264.0,0.177733]
[1725551528907,0.177723,56268.0,56264.0,0.177733]
[1725551529147,0.177725,56267.0,56265.0,0.194]
[1725551529597,0.177722,56268.0,56265.0,0.194]
[1725551529814,0.177713,56271.0,56267.0,0.177723]
[1725551530049,0.177724,56267.0,56266.0,0.3162]
[1725551530251,0.533172,56267.0,56266.0,0.3162]
[1725551531358,0.177724,56267.0,56266.0,0.3162]
[1725551531745,0.533172,56267.0,56266.0,0.3222]
[1725551531954,0.177724,56267.0,56266.0,0.3222]
[1725551532167,0.533172,56267.0,56266.0,0.3222]
[1725551532652,0.88862,56267.0,56266.0,0.3222]
[1725551532849,0.88862,56267.0,56266.0,0.016]
[1725551533101,0.533172,56267.0,56266.0,0.016]
[1725551533322,0.533172,56267.0,56266.0,0.025]
[1725551534749,0.88862,56267.0,56266.0,0.025]
[1725551534963,0.533172,56267.0,56266.0,0.025]
[1725551535448,0.2945,56282.0,56267.0,0.3038]
[1725551535449,0.00082,56279.0,56267.0,0.3038]
[1725551535704,0.355379,56278.0,56270.0,0.01]
[1725551535916,0.355379,56278.0,56269.0,0.002]
[1725551535917,0.00082,56279.0,56274.0,0.01]
[1725551536135,0.177692,56277.0,56276.0,0.01]
[1725551536410,0.00082,56279.0,56276.0,0.01]
[1725551536662,0.00082,56279.0,56278.0,0.466989]
[1725551536896,0.00082,56279.0,56278.0,0.2993]
[1725551536897,0.88925,56279.0,56278.0,0.2993]
[1725551537117,0.178506,56279.0,56278.0,0.2993]
[1725551537374,0.00082,56279.0,56278.0,0.47481096]
[1725551537584,0.00082,56279.0,56278.0,1.00787796]
[1725551538445,0.00082,56279.0,56278.0,0.65249996]
[1725551538656,0.00082,56279.0,56278.0,1.00787796]
[1725551538900,0.00082,56279.0,56278.0,0.66149996]
[1725551539112,0.00082,56279.0,56278.0,1.01687796]
[1725551539565,0.00082,56279.0,56278.0,0.48381096]
[1725551539783,0.00082,56279.0,56278.0,0.66149996]
[1725551540000,0.178506,56279.0,56278.0,0.3213]
[1725551540247,0.533878,56279.0,56278.0,0.3213]
[1725551540488,1.244622,56279.0,56278.0,0.009]
[1725551540704,1.244622,56279.0,56278.0,0.021]
[1725551542209,1.599994,56279.0,56278.0,0.021]
[1725551542428,1.622994,56279.0,56278.0,0.021]
[1725551543310,1.622994,56279.0,56278.0,0.012]
[1725551543533,0.888572,56270.0,56269.0,0.01]
[1725551543751,0.355435,56269.0,56267.0,0.01]
[1725551544008,0.533143,56270.0,56269.0,0.01]
[1725551544220,0.26994823,56276.0,56265.0,0.01]
[1725551544221,0.355412,56273.0,56265.0,0.01]
[1725551544439,0.888667,56264.0,56263.0,0.01042767]
[1725551544657,1.244134,56264.0,56263.0,0.01042767]
[1725551544877,1.244134,56264.0,56263.0,0.00042767]
[1725551545784,0.888667,56264.0,56263.0,0.01042767]
[1725551546482,0.888667,56264.0,56263.0,0.00042767]
[1725551546483,1.244134,56264.0,56263.0,0.00042767]
[1725551546745,1.599601,56264.0,56263.0,0.00042767]
[1725551547213,1.599601,56264.0,56263.0,0.00842767]
[1725551547454,1.622601,56264.0,56263.0,0.00042767]
[1725551547699,1.978068,56264.0,56263.0,0.00042767]
[1725551548007,2.098068,56264.0,56263.0,0.00342767]
[1725551548220,2.098068,56264.0,56263.0,0.00042767]
[1725551548221,2.742235,56264.0,56263.0,0.00042767]
[1725551548924,2.742235,56264.0,56263.0,0.00542767]
[1725551549387,2.386768,56264.0,56263.0,0.00542767]
[1725551549624,2.386768,56264.0,56263.0,0.00042767]
[1725551550078,2.387768,56264.0,56263.0,0.00142767]
[1725551551244,1.345134,56264.0,56263.0,0.00142767]
[1725551551487,1.345134,56264.0,56263.0,0.00242767]
[1725551551488,0.890667,56264.0,56263.0,0.00242767]
[1725551551926,1.246134,56264.0,56263.0,0.00242767]
[1725551552607,1.245134,56264.0,56263.0,0.00142767]
[1725551552827,0.890667,56264.0,56263.0,0.00242767]
[1725551553284,0.888667,56264.0,56263.0,0.00042767]
[1725551553722,0.5342,56264.0,56263.0,0.00142767]
[1725551553944,0.5342,56264.0,56263.0,0.00042767]
[1725551553945,0.5332,56264.0,56263.0,0.00042767]
[1725551554468,0.888667,56264.0,56263.0,0.00042767]
[1725551554692,0.888667,56264.0,56263.0,0.00642767]
[1725551555109,0.888667,56264.0,56263.0,0.00042767]
[1725551555319,0.177733,56264.0,56263.0,0.00042767]
[1725551555530,0.177733,56264.0,56263.0,0.28642767]
[1725551555821,0.355445,56268.0,56263.0,0.47016267]
[1725551556038,0.177733,56264.0,56263.0,0.30242767]
[1725551556260,0.355424,56271.0,56263.0,0.47193863]
[1725551556463,0.1,56276.0,56263.0,0.47193863]
[1725551556464,0.355404,56274.0,56269.0,0.002]
[1725551556690,0.177709,56272.0,56269.0,0.002]
[1725551556901,0.177698,56276.0,56269.0,0.012]
[1725551557137,0.356198,56279.0,56269.0,0.012]
[1725551557138,0.3554,56275.0,56270.0,0.2048]
[1725551557576,0.177709,56272.0,56270.0,0.2048]
[1725551557793,0.001,56271.0,56270.0,0.2048]
[1725551558006,0.177705,56273.0,56270.0,0.382514]
[1725551558233,0.177709,56272.0,56270.0,0.2048]
[1725551558481,0.001,56271.0,56270.0,0.382514]
[1725551558690,0.355402,56275.0,56270.0,0.2048]
[1725551558909,0.177711,56271.0,56270.0,0.2048]
[1725551559120,0.177708,56272.0,56270.0,0.2048]
[1725551560039,0.355383,56278.0,56271.0,0.45491096]
[1725551560270,0.177708,56273.0,56271.0,0.45491096]
[1725551560491,0.000815,56274.0,56271.0,0.45491096]
[1725551560732,0.356221,56274.0,56271.0,0.2794]
[1725551560950,0.533133,56271.0,56270.0,0.002]
[1725551561183,0.177717,56269.0,56268.0,0.01]
[1725551561401,0.355412,56273.0,56268.0,0.01]
[1725551561625,0.177712,56271.0,56268.0,0.01]
[1725551562032,0.177708,56272.0,56268.0,0.18772]
[1725551562197,0.177708,56272.0,56268.0,0.01]
[1725551562198,0.355416,56272.0,56268.0,0.01]
[1725551562433,0.356219,56274.0,56269.0,0.177717]
[1725551562729,0.356219,56274.0,56268.0,0.18551096]
[1725551562730,0.17771,56272.0,56268.0,0.36323096]
[1725551563153,0.355413,56273.0,56268.0,0.01]
[1725551563410,0.355422,56271.0,56268.0,0.01]
[1725551563600,0.177713,56271.0,56268.0,0.01]
[1725551563851,0.355413,56273.0,56268.0,0.01]
[1725551564063,0.177706,56273.0,56268.0,0.18772]
[1725551564300,0.000815,56274.0,56269.0,0.355435]
[1725551564520,0.000815,56274.0,56273.0,1.173925]
[1725551564721,0.000815,56274.0,56273.0,1.70484596]
[1725551565535,0.000815,56274.0,56273.0,1.88694596]
[1725551567025,0.000815,56274.0,56273.0,0.645205]
[1725551567244,0.000815,56274.0,56273.0,0.4675]
[1725551567474,0.000815,56274.0,56273.0,0.645205]
[1725551568353,0.000815,56274.0,56273.0,0.2854]
[1725551568354,0.178516,56274.0,56273.0,0.2854]
[1725551568571,0.178516,56274.0,56273.0,0.01]
[1725551568785,0.533919,56274.0,56273.0,0.01]
[1725551568991,0.889322,56274.0,56273.0,0.01]
[1725551569196,0.533919,56274.0,56273.0,0.01]
[1725551570688,0.533919,56274.0,56270.0,0.00042761]
[1725551570689,0.000815,56274.0,56270.0,0.00042761]
[1725551570960,0.888555,56271.0,56270.0,0.00042761]
[1725551571186,1.243977,56271.0,56270.0,0.00042761]
[1725551571863,0.533133,56271.0,56270.0,0.00042761]
[1725551572083,0.000815,56274.0,56270.0,0.00042761]
[1725551572302,0.17771,56272.0,56270.0,0.00042761]
[1725551572524,0.355411,56273.0,56270.0,0.00042761]
[1725551572758,0.533133,56271.0,56270.0,0.00042761]
[1725551572980,0.000815,56274.0,56270.0,0.00042761]
[1725551573212,0.177711,56271.0,56270.0,0.00042761]
[1725551573443,0.177711,56271.0,56270.0,0.00205761]
[1725551573664,0.533119,56273.0,56270.0,0.00205761]
[1725551573924,0.177711,56271.0,56270.0,0.00205761]
[1725551575087,0.533133,56271.0,56270.0,0.00205761]
[1725551575729,0.533133,56271.0,56270.0,0.00505761]
[1725551575961,0.888555,56271.0,56270.0,0.00505761]
[1725551576388,0.533133,56271.0,56270.0,0.00505761]
[1725551576864,0.355417,56272.0,56270.0,0.00505761]
[1725551577108,0.177711,56271.0,56270.0,0.00505761]
[1725551577343,0.533133,56271.0,56270.0,0.00505761]
[1725551577574,0.888555,56271.0,56270.0,0.00505761]
[1725551577804,1.243977,56271.0,56270.0,0.00505761]
[1725551578873,1.243977,56271.0,56270.0,0.00205761]
[1725551579100,0.533133,56271.0,56270.0,0.00405761]
[1725551579316,0.178518,56274.0,56270.0,0.00205761]
[1725551579546,0.178518,56274.0,56271.0,0.293]
[1725551579547,0.000815,56274.0,56271.0,0.293]
[1725551579779,0.000815,56274.0,56271.0,0.30342761]
[1725551579991,0.178518,56274.0,56271.0,0.30342761]
[1725551580430,0.178518,56274.0,56271.0,0.3034276]
[1725551580667,0.000815,56274.0,56271.0,0.3034276]
[1725551580885,0.177708,56272.0,56271.0,0.3034276]
[1725551581570,0.177705,56273.0,56271.0,0.3034276]
[1725551582240,0.000815,56276.0,56271.0,0.3034276]
[1725551582491,0.177708,56272.0,56271.0,0.3034276]
[1725551582741,0.000815,56276.0,56271.0,0.3054276]
[1725551582950,0.177708,56272.0,56271.0,0.3034276]
[1725551583378,0.355405,56274.0,56271.0,0.3034276]
[1725551583615,0.000815,56276.0,56274.0,0.002]
[1725551583854,0.000815,56276.0,56275.0,1.80055119]
[1725551584324,0.000815,56276.0,56275.0,2.15637577]
[1725551584565,0.000815,56276.0,56275.0,2.15637576]
[1725551584793,0.000815,56276.0,56275.0,2.15637575]
[1725551585036,0.000815,56276.0,56275.0,1.53103052]
[1725551585505,0.000815,56276.0,56275.0,1.53103051]
[1725551586219,0.000815,56276.0,56275.0,1.54503051]
[1725551586941,0.000815,56276.0,56275.0,1.20363351]
[1725551587403,0.000815,56276.0,56275.0,1.2036335]
[1725551587629,0.000815,56276.0,56275.0,0.8482365]
[1725551587860,0.000815,56276.0,56275.0,0.67272554]
[1725551588314,0.000815,56276.0,56275.0,0.30812754]
[1725551588546,0.533901,56276.0,56275.0,0.03842754]
[1725551588787,0.889292,56276.0,56275.0,0.02842754]
[1725551589704,0.889292,56276.0,56275.0,0.01442754]
[1725551589705,1.529383,56276.0,56275.0,0.01442754]
[1725551589923,1.529383,56276.0,56275.0,0.01142754]
[1725551590423,1.529383,56276.0,56275.0,0.02542754]
[1725551590662,1.529383,56276.0,56275.0,0.01442754]
[1725551590663,1.917774,56276.0,56275.0,0.01442754]
[1725551590904,2.017774,56276.0,56275.0,0.01442754]
[1725551591138,2.017774,56276.0,56275.0,0.01942754]
[1725551591609,2.59080601,56276.0,56275.0,0.00042754]
[1725551591840,2.59080601,56276.0,56275.0,0.00742754]
[1725551592306,2.23541501,56276.0,56275.0,0.00042754]
[1725551592533,2.23741501,56276.0,56275.0,0.00042754]
[1725551593229,2.22741501,56276.0,56275.0,0.00042754]
[1725551593464,2.23741501,56276.0,56275.0,0.00042754]
[1725551593965,2.22741501,56276.0,56275.0,0.00042754]
[1725551594180,1.39332401,56276.0,56275.0,0.00042754]
[1725551595280,1.369683,56276.0,56275.0,0.00042754]
[1725551596376,0.991292,56276.0,56275.0,0.00042754]
[1725551596626,0.891292,56276.0,56275.0,0.00042754]
[1725551597494,0.535901,56276.0,56275.0,0.00042754]
[1725551597720,0.891292,56276.0,56275.0,0.00042754]
[1725551598151,1.246683,56276.0,56275.0,0.00042754]
[1725551599728,1.246683,56276.0,56275.0,0.00205954]
[1725551600444,1.625074,56276.0,56275.0,0.00205954]
[1725551601488,1.269683,56276.0,56275.0,0.00205954]
[1725551602344,1.246683,56276.0,56275.0,0.00205954]
[1725551602997,0.891292,56276.0,56275.0,0.00205954]
[1725551603237,1.246683,56276.0,56275.0,0.00205954]
[1725551604113,0.891292,56276.0,56275.0,0.00205954]
[1725551604324,0.535901,56276.0,56275.0,0.00205954]
[1725551605212,0.002815,56276.0,56275.0,0.37655754]
[1725551605463,0.002815,56276.0,56275.0,1.2050655]
[1725551605685,0.002815,56276.0,56275.0,1.91585949]
[1725551605938,0.002815,56276.0,56275.0,1.91585948]
[1725551606379,0.000815,56276.0,56275.0,1.91585947]
[1725551606601,0.000815,56276.0,56275.0,1.91585946]
[1725551606819,0.000815,56276.0,56275.0,1.92285946]
[1725551607031,0.000815,56276.0,56275.0,1.91585946]
[1725551607462,0.000815,56276.0,56275.0,1.92985946]
[1725551607691,0.000815,56276.0,56275.0,1.92985945]
[1725551607922,0.000815,56276.0,56275.0,1.94385945]
[1725551608655,0.533901,56276.0,56275.0,0.48765948]
[1725551608871,0.889292,56276.0,56275.0,0.48765948]
[1725551609104,0.889292,56276.0,56275.0,0.50165948]
[1725551609360,1.244683,56276.0,56275.0,0.20005948]
[1725551609568,0.889292,56276.0,56275.0,0.21005948]
[1725551610016,0.889292,56276.0,56275.0,0.19605948]
[1725551610203,0.889292,56276.0,56275.0,0.21005948]
[1725551610374,0.889292,56276.0,56275.0,0.22405948]
[1725551610964,0.889292,56276.0,56275.0,0.21005948]
[1725551611337,0.889292,56276.0,56275.0,0.22405948]
[1725551611760,0.889292,56276.0,56275.0,0.21405948]
[1725551612177,0.889292,56276.0,56275.0,0.22405947]
[1725551612363,0.889292,56276.0,56275.0,0.21405947]
[1725551612635,1.244683,56276.0,56275.0,0.21405947]
[1725551612876,0.912292,56276.0,56275.0,0.21405947]
[1725551613303,1.267683,56276.0,56275.0,0.21405947]
[1725551613305,1.277683,56276.0,56275.0,0.20005947]
[1725551613561,1.277683,56276.0,56275.0,0.19905947]
[1725551613562,1.85601078,56276.0,56275.0,0.19905947]
[1725551613796,2.59140178,56276.0,56275.0,0.18288614]
[1725551614029,2.99918495,56276.0,56275.0,0.16988614]
[1725551614264,2.64379395,56276.0,56275.0,0.15988614]
[1725551614500,2.64579395,56276.0,56275.0,0.15988614]
[1725551614749,2.64579395,56276.0,56271.0,0.00163]
[1725551614750,1.974788,56272.0,56271.0,0.00163]
[1725551614973,1.30944823,56264.0,56254.0,0.00163]
[1725551615215,1.30944823,56264.0,56263.0,0.02623]
[1725551615216,2.37584923,56264.0,56263.0,0.02623]
[1725551615431,2.584368,56264.0,56263.0,0.02623]
[1725551616420,2.228901,56264.0,56263.0,0.02623]
[1725551617138,2.25243161,56264.0,56263.0,0.02623]
[1725551618060,2.25543161,56264.0,56263.0,0.02723]
[1725551619021,2.68718236,56264.0,56263.0,0.02723]
[1725551619236,2.68418236,56264.0,56263.0,0.02623]
[1725551619453,2.60789861,56264.0,56263.0,0.02623]
[1725551619684,2.61589861,56264.0,56263.0,0.02723]
[1725551620131,2.60789861,56264.0,56263.0,0.02623]
[1725551620355,2.78345887,56264.0,56263.0,0.02623]
[1725551620570,2.61589861,56264.0,56263.0,0.02723]
[1725551621089,2.60789861,56264.0,56263.0,0.02623]
[1725551621309,2.61789861,56264.0,56263.0,0.02823]
[1725551621761,2.61789861,56264.0,56263.0,0.02723]
[1725551621762,2.61589861,56264.0,56263.0,0.02723]
[1725551622001,2.62289861,56264.0,56263.0,0.02823]
[1725551622235,2.26743161,56264.0,56263.0,0.02823]
[1725551622673,1.97083161,56264.0,56263.0,0.02723]
[1725551622891,1.98483161,56264.0,56263.0,0.02723]
[1725551623775,2.34029861,56264.0,56263.0,0.02723]
[1725551623979,1.98483161,56264.0,56263.0,0.02723]
[1725551625377,1.78713161,56264.0,56263.0,0.02723]
[1725551625601,1.77713161,56264.0,56263.0,0.02723]
[1725551625836,1.78713161,56264.0,56263.0,0.02723]
[1725551626955,1.77313161,56264.0,56263.0,0.02723]
[1725551627408,1.78013161,56264.0,56263.0,0.02623]
[1725551627903,1.79213161,56264.0,56263.0,0.02723]
[1725551628137,1.78013161,56264.0,56263.0,0.02623]
[1725551628377,1.77713161,56264.0,56263.0,0.02723]
[1725551628611,1.76713161,56264.0,56263.0,0.02723]
[1725551628843,1.66713161,56264.0,56263.0,0.02723]
[1725551629308,1.67013161,56264.0,56263.0,0.02623]
[1725551629741,1.65613161,56264.0,56263.0,0.02623]
[1725551629963,1.66413161,56264.0,56263.0,0.02623]
[1725551630631,1.76613161,56264.0,56263.0,0.02723]
[1725551630859,1.75613161,56264.0,56263.0,0.02623]
[1725551631027,1.76213161,56264.0,56263.0,0.02623]
[1725551631200,1.76713161,56264.0,56263.0,0.02623]
[1725551631430,1.74613161,56264.0,56263.0,0.02623]
[1725551631838,1.75013161,56264.0,56263.0,0.02623]
[1725551632045,1.39466461,56264.0,56263.0,0.02623]
[1725551632241,1.39466461,56264.0,56263.0,0.21433]